fUSD/lending_fUSD_20250809
["ID","MTS","AMOUNT","RATE_DAILY","PERIOD"]
[378115117,1754737832436,-503.36531158,0.00019073,2]
[378115119,1754737832445,-500.0,0.00019073,2]
[378115121,1754737832455,-500.0,0.00019073,2]
[378115123,1754737832464,-1200.0,0.00019077,2]
[378115125,1754737832473,-163.41597667,0.00019077,2]
[378115127,1754737832483,-174.43170648,0.00019077,2]
[378115129,1754737832492,-500.0,0.00019077,2]
[378115131,1754737832502,-500.0,0.00019077,2]
[378115133,1754737832511,-500.0,0.00019077,2]
[378115135,1754737832522,-500.0,0.00019077,2]
[378115137,1754737832531,-239.24265398,0.00019077,2]
[378115139,1754737832540,-500.0,0.00019077,2]
[378115142,1754737832555,-500.0,0.00019077,2]
[378115145,1754737832573,-500.0,0.00019077,2]
[378115147,1754737832584,-308.79758635,0.00019077,2]
[378115149,1754737832602,-500.0,0.00019077,2]
[378115152,1754737832616,-500.0,0.00019077,2]
[378115155,1754737832631,-500.0,0.00019077,2]
[378115157,1754737832647,-500.0,0.00019077,2]
[378115160,1754737832661,-500.0,0.00019077,2]
[378115162,1754737832672,-500.0,0.00019077,2]
[378115164,1754737832686,-500.0,0.00019077,2]
[378115167,1754737832700,-112665.36667394,0.00019078,2]
[378115171,1754737832731,-2918.33484628,0.00019078,2]
[378115176,1754737832781,-300.0,0.00019078,2]
[378115177,1754737832896,-33348.29777118,0.00019078,2]
[378115178,1754737832910,-2349.85431472,0.00019078,2]
[378115672,1754737837840,-2039.0,0.00019078,2]
[378115683,1754737837938,-411.04116977,0.00019078,2]
[378115685,1754737837949,-2641.626772,0.00019078,2]
[378115695,1754737838044,-56160.8540475,0.00019078,2]
[378115884,1754737839942,-6883.38337673,0.00019078,2]
[378115887,1754737839953,-4128.63986883,0.00019078,2]
[378115889,1754737839964,-4432.26839026,0.00019078,2]
[378115891,1754737839976,-28379.98674012,0.00019078,2]
[378115893,1754737839987,-67099.9727788,0.00019078,2]
[378115895,1754737839998,-1363.68834929,0.00019078,2]
[378115898,1754737840010,-9315.76298536,0.00019078,2]
[378115900,1754737840022,-2450.08099561,0.00019078,2]
[378115902,1754737840033,-30044.07109562,0.00019078,2]
[378115916,1754737840157,-600.1695,0.00019078,2]
[378116206,1754737843037,-1828.19097677,0.00019078,2]
[378116208,1754737843048,-1639.72088714,0.00019078,2]
[378116214,1754737843094,-523.52510922,0.00019078,2]
[378116229,1754737843223,-9071.58376556,0.00019078,2]
[378116231,1754737843235,-500.0,0.00019078,2]
[378116234,1754737843246,-1227.67296045,0.00019078,2]
[378116236,1754737843257,-10939.58503092,0.00019078,2]
[378116239,1754737843281,-2900.5885665,0.00019078,2]
[378116241,1754737843293,-732.21469732,0.00019078,2]
[378116496,1754737846090,-5837.24485,0.00019078,2]
[378116501,1754737846143,-113807.20138031,0.00019078,2]
[378116504,1754737846154,-509.25625218,0.00019078,2]
[378116506,1754737846166,-261.63464925,0.00019078,2]
[378116508,1754737846177,-7573.75725162,0.00019078,2]
[378116511,1754737846198,-1913.4607355,0.00019078,2]
[378116512,1754737846221,-2664.0,0.00019078,2]
[378116513,1754737846236,-64566.52382979,0.00019078,2]
[378116514,1754737846251,-34004.18852571,0.00019078,2]
[378116515,1754737846263,-480.0,0.00019078,2]
[378116516,1754737846274,-264.66833064,0.00019078,2]
[378116517,1754737846285,-5868.97963012,0.00019078,2]
[378116518,1754737846297,-200354.11495988,0.00019078,2]
[378117460,1754738053599,494.2,0.00015428,2]
[378117461,1754738053827,494.2,0.00017158,2]
[378117462,1754738091134,1070.0,0.00017,10]
[378117466,1754738285864,222.47,0.00013699,2]
[378117479,1754738764127,1487.81,8e-05,2]
[378117480,1754738768751,1675.74664389,0.00015,2]
[378117485,1754738808117,250.0,0.00015,2]
[378117491,1754738836549,2851.19681472,0.00015,2]
[378117492,1754738845270,591.93524113,0.00017976,2]
[378117496,1754738878066,7374.86758956,0.00018,2]
[378117497,1754738885883,25.50791522,0.00017952,7]
[378117498,1754738885913,144.49208478,0.00017952,7]
[378117501,1754738922134,42771.29829571,0.000151,2]
[378117502,1754738926200,1743.42911406,0.00010136,2]
[378117503,1754738926470,32801.0192093,0.00013368,2]
[378117506,1754738931842,166.04,0.00017952,2]
[378117521,1754739032083,-588.0,0.00018076,2]
[378117522,1754739032095,-464.09513756,0.00018076,2]
[378117523,1754739032140,-1677.4804957,0.00018076,2]
[378117524,1754739032193,-2349.652796,0.00018076,2]
[378117525,1754739032205,-11732.0,0.00018076,2]
[378117526,1754739032250,-7088.77157074,0.00018076,2]
[378117527,1754739032260,-200.0,0.00018094,2]
[378117528,1754739032270,-200.0,0.00018101,2]
[378117529,1754739032280,-240.84,0.00018154,2]
[378117530,1754739032289,-189.84,0.00018249,2]
[378117531,1754739032298,-516.0,0.00018287,2]
[378117532,1754739032308,-6211.20374514,0.00018481,2]
[378117533,1754739032339,-4517.96625486,0.00018481,2]
[378117534,1754739032348,-1000.0,0.00018523,2]
[378117535,1754739032358,-600.0,0.000186,6]
[378117536,1754739032367,-2199.524,0.00018696,2]
[378117538,1754739032377,-1200.0,0.000187,6]
[378117540,1754739032387,-1800.0,0.000188,6]
[378117542,1754739032396,-820.95722968,0.00018879,2]
[378117543,1754739032405,-494.2,0.00018889,2]
[378117544,1754739032415,-1008.16101,0.0001889,2]
[378117545,1754739032425,-2400.0,0.000189,6]
[378117546,1754739032434,-6215.60629276,0.00018905,2]
[378117547,1754739032444,-175.75962084,0.00018905,2]
[378117548,1754739032454,-514.94763564,0.00018973,2]
[378117549,1754739032463,-500.0,0.00018973,2]
[378117550,1754739032472,-500.0,0.00018973,2]
[378117551,1754739032482,-500.0,0.00018973,2]
[378117552,1754739032491,-500.0,0.00018973,2]
[378117553,1754739032500,-174.19956245,0.00018973,2]
[378117554,1754739032511,-325.56090266,0.00018973,2]
[378117555,1754739032520,-500.0,0.00018973,2]
[378117556,1754739032530,-500.0,0.00018973,2]
[378117557,1754739032540,-500.0,0.00018973,2]
[378117558,1754739032550,-500.0,0.00018973,2]
[378117559,1754739032559,-500.0,0.00018973,2]
[378117561,1754739032569,-500.0,0.00018973,2]
[378117563,1754739032578,-500.0,0.00018973,2]
[378117565,1754739032588,-500.0,0.00018973,2]
[378117567,1754739032598,-253.03530275,0.00018973,2]
[378117569,1754739032609,-308.40167321,0.00018973,2]
[378117571,1754739032618,-500.0,0.00018973,2]
[378117573,1754739032628,-137.57567328,0.00018978,2]
[378117575,1754739032639,-2103.14182672,0.00018978,2]
[378117577,1754739032649,-151.52,0.0001899,2]
[378117578,1754739032658,-151.52,0.0001899,2]
[378117580,1754739032667,-151.52,0.0001899,2]
[378117582,1754739032677,-151.52,0.0001899,2]
[378117584,1754739032687,-151.52,0.0001899,2]
[378117586,1754739032696,-500.0,0.00018999,2]
[378117588,1754739032706,-630.87975864,0.00018999,2]
[378117590,1754739032715,-500.0,0.00018999,2]
[378117592,1754739032725,-184.42660224,0.00018999,2]
[378117594,1754739032735,-183.17429105,0.00018999,2]
[378117596,1754739032744,-321.24010058,0.00019,2]
[378117599,1754739032754,-21916.58238331,0.00019,2]
[378117601,1754739032765,-1182.83167883,0.00019,2]
[378117603,1754739032777,-546.70376497,0.00019,2]
[378117605,1754739032820,-25762.35708801,0.00019,2]
[378117606,1754739032844,-478.08099993,0.0001899,2]
[378117607,1754739032856,-265.41020935,0.0001899,2]
[378117608,1754739032865,-73.60539496,0.00019,2]
[378117609,1754739032882,-55195.10121585,0.00019,2]
[378117610,1754739032894,-2038.74268305,0.00019,2]
[378117611,1754739033677,250.78,0.0001797,2]
[378117621,1754739038079,-250.78,0.00018644,2]
[378117622,1754739038088,-774.81139227,0.00018978,2]
[378117623,1754739038098,-22.85969401,0.00019,2]
[378117624,1754739038188,-479.0485,0.00019,2]
[378117625,1754739038199,-3497.4,0.00019,2]
[378117626,1754739038242,-2608.97268931,0.00019,2]
[378117627,1754739038424,-184796.34468022,0.00019,2]
[378117628,1754739038433,-14171.7046064,0.00019,2]
[378117630,1754739038443,-569.68,0.00019,2]
[378117631,1754739038453,-1289705.19627865,0.00019,2]
[378117632,1754739038462,-32107.2693961,0.00019,2]
[378117634,1754739038472,-310.07462872,0.00019005,2]
[378117635,1754739038481,-157.99031748,0.00019022,2]
[378117637,1754739038490,-350.0,0.00019059,2]
[378117638,1754739038500,-151.0,0.00019067,2]
[378117639,1754739038509,-500.0,0.00019067,2]
[378117640,1754739038520,-616.65293383,0.00019067,2]
[378117641,1754739038529,-151.0,0.00019067,2]
[378117642,1754739038539,-600.0,0.00019067,2]
[378117643,1754739038549,-153.98410028,0.00019067,2]
[378117644,1754739038559,-200.0,0.00019067,2]
[378117645,1754739038569,-500.0,0.00019067,2]
[378117646,1754739038578,-500.0,0.00019067,2]
[378117647,1754739038588,-500.0,0.00019067,2]
[378117648,1754739038598,-500.0,0.00019067,2]
[378117650,1754739038608,-500.0,0.00019067,2]
[378117652,1754739038617,-500.0,0.00019067,2]
[378117654,1754739038626,-500.0,0.00019067,2]
[378117656,1754739038636,-500.0,0.00019067,2]
[378117658,1754739038646,-500.0,0.00019067,2]
[378117660,1754739038655,-500.0,0.00019067,2]
[378117662,1754739038665,-500.0,0.00019067,2]
[378117664,1754739038674,-436.58110521,0.00019067,2]
[378117666,1754739038683,-151.52,0.00019068,2]
[378117668,1754739038693,-151.52,0.00019068,2]
[378117670,1754739038703,-151.52,0.00019068,2]
[378117672,1754739038712,-151.52,0.00019068,2]
[378117674,1754739038722,-151.52,0.00019068,2]
[378117676,1754739038731,-151.52,0.00019068,2]
[378117678,1754739038740,-151.52,0.00019068,2]
[378117680,1754739038749,-151.52,0.00019068,2]
[378117682,1754739038758,-151.52,0.00019068,2]
[378117683,1754739038767,-151.52,0.00019068,2]
[378117685,1754739038777,-151.52,0.00019068,2]
[378117687,1754739038786,-151.52,0.00019068,2]
[378117689,1754739038796,-151.52,0.00019068,2]
[378117692,1754739038806,-151.52,0.00019068,2]
[378117694,1754739038816,-151.52,0.00019068,2]
[378117695,1754739038825,-503.60191567,0.00019073,2]
[378117698,1754739038835,-500.0,0.00019073,2]
[378117699,1754739038845,-500.0,0.00019073,2]
[378117701,1754739038854,-196.16067769,0.00019073,2]
[378117703,1754739038863,-500.0,0.00019073,2]
[378117705,1754739038873,-602.60040285,0.00019073,2]
[378117707,1754739038882,-500.0,0.00019073,2]
[378117709,1754739038891,-500.0,0.00019073,2]
[378117711,1754739038901,-500.0,0.00019073,2]
[378117713,1754739038910,-500.0,0.00019073,2]
[378117715,1754739038920,-500.0,0.00019073,2]
[378117717,1754739038929,-500.0,0.00019073,2]
[378117719,1754739038941,-500.0,0.00019073,2]
[378117721,1754739038951,-569.61520737,0.00019073,2]
[378117723,1754739038960,-300.0,0.00019077,2]
[378117725,1754739038968,-666.0,0.00019077,2]
[378117727,1754739038978,-150.0,0.00019077,2]
[378117729,1754739038988,-150.0,0.00019077,2]
[378117731,1754739038997,-150.0,0.00019077,2]
[378117733,1754739039006,-1676315.79793511,0.00019078,2]
[378117735,1754739039016,-200.0,0.00019078,2]
[378117736,1754739039026,-155.93607619,0.00019078,2]
[378117738,1754739039035,-200.0,0.00019078,2]
[378117741,1754739039045,-1562.73713797,0.000191,2]
[378117743,1754739039055,-1562.73713798,0.000191,2]
[378117744,1754739039064,-500.0,0.00019122,2]
[378117746,1754739039074,-189.84,0.00019162,2]
[378117749,1754739039083,-500.0,0.00019177,2]
[378117751,1754739039093,-400.0,0.00019178,2]
[378117752,1754739039102,-151.0,0.00019178,2]
[378117755,1754739039112,-170.25,0.00019178,2]
[378117757,1754739039122,-500.0,0.00019232,2]
[378117758,1754739039131,-200.0,0.00019269,2]
[378117760,1754739039140,-200.0,0.00019269,2]
[378117762,1754739039150,-500.0,0.00019287,2]
[378117764,1754739039159,-250.78,0.00019318,2]
[378117766,1754739039168,-297.03,0.00019336,2]
[378117768,1754739039178,-600.0,0.00019396,2]
[378117770,1754739039187,-600.0,0.00019396,2]
[378117772,1754739039196,-600.0,0.00019396,2]
[378117774,1754739039206,-246.70076389,0.00019415,2]
[378117776,1754739039215,-200.0,0.00019461,2]
[378117778,1754739039225,-200.0,0.00019461,2]
[378117780,1754739039234,-500.0,0.00019521,2]
[378117782,1754739039243,-500.0,0.00019521,2]
[378117784,1754739039253,-500.0,0.00019521,2]
[378117786,1754739039262,-502.12195936,0.00019521,2]
[378117788,1754739039271,-6215.60629272,0.00019549,2]
[378117790,1754739039280,-598.02646376,0.00019621,2]
[378117792,1754739039289,-500.0,0.00019621,2]
[378117794,1754739039298,-282.47333697,0.00019621,2]
[378117796,1754739039307,-1000.0,0.00019621,2]
[378117798,1754739039316,-1000.0,0.00019621,2]
[378117800,1754739039326,-514.87661001,0.00019621,2]
[378117802,1754739039335,-1000.0,0.00019621,2]
[378117804,1754739039345,-1003.39759304,0.00019621,2]
[378117806,1754739039354,-200.0,0.00019656,2]
[378117807,1754739039363,-200.0,0.00019656,2]
[378117809,1754739039372,-156.587,0.00019726,2]
[378117811,1754739039382,-500.0,0.00019781,2]
[378117813,1754739039391,-310.07462867,0.00019831,2]
[378117815,1754739039400,-150.0,0.00019846,2]
[378117817,1754739039411,-200.0,0.00019853,2]
[378117819,1754739039420,-200.0,0.00019853,2]
[378117821,1754739039430,-500.0,0.00019884,4]
[378117823,1754739039439,-1008.16102,0.0001989,2]
[378117825,1754739039449,-151.52,0.0001989,2]
[378117827,1754739039459,-826.84,0.00019891,2]
[378117829,1754739039469,-250.0,0.00019895,2]
[378117831,1754739039478,-177.13,0.000199,2]
[378117833,1754739039488,-618.48810873,0.000199,2]
[378117835,1754739039498,-618.48810873,0.000199,2]
[378117837,1754739039507,-618.48810873,0.000199,2]
[378117839,1754739039517,-618.48810873,0.000199,2]
[378117841,1754739039526,-618.48810873,0.000199,2]
[378117843,1754739039535,-618.48810873,0.000199,2]
[378117845,1754739039544,-250.78,0.00019992,2]
[378117847,1754739039554,-1584.23041008,0.0002,2]
[378117849,1754739039563,-1501.59489582,0.0002,2]
[378117851,1754739039573,-200.0,0.0002,2]
[378117853,1754739039582,-8118.30409329,0.0002,14]
[378117855,1754739039591,-4000.0,0.0002,4]
[378117857,1754739039601,-175.75962081,0.00020051,2]
[378117859,1754739039611,-189.84,0.00020074,2]
[378117861,1754739039620,-555.0,0.00020164,2]
[378117863,1754739039632,-7466.0,0.00020164,2]
[378117865,1754739039641,-1500.0,0.00020168,2]
[378117867,1754739039650,-1500.0,0.00020168,2]
[378117869,1754739039660,-222.47,0.00020187,2]
[378117871,1754739039684,-6215.60629272,0.00020193,2]
[378117873,1754739039695,-23829.96,0.00020217,2]
[378117875,1754739039704,-2303.26,0.00020228,2]
[378117877,1754739039714,-1220.83,0.00020235,2]
[378117879,1754739039723,-453.0,0.00020265,2]
[378117881,1754739039733,-340.694294,0.00020266,2]
[378117883,1754739039743,-516.0,0.00020274,4]
[378117884,1754739039751,-494.2,0.00020619,2]
[378117887,1754739039761,-774.81139225,0.00020642,2]
[378117888,1754739039771,-310.07462867,0.00020658,2]
[378117891,1754739039780,-250.78,0.00020666,2]
[378117895,1754739039790,-437.55118316,0.00020716,2]
[378117897,1754739039800,-1816.17110839,0.00020716,2]
[378117900,1754739039810,-6215.60629272,0.00020837,2]
[378117901,1754739039819,-1000.0,0.00020838,2]
[378117903,1754739039829,-1008.16102,0.0002089,2]
[378117906,1754739039839,-2581.24,0.00020916,2]
[378117908,1754739039849,-189.84,0.00020987,2]
[378117911,1754739039859,-5898.8285545,0.00021,2]
[378117914,1754739039869,-4000.0,0.00021,4]
[378117917,1754739039879,-175.75962081,0.00021196,2]
[378117919,1754739039888,-251.1,0.00021281,2]
[378117923,1754739039898,-166.44,0.00021412,2]
[378117925,1754739039907,-6215.60629272,0.00021481,2]
[378117927,1754739039917,-310.07462867,0.00021484,2]
[378117929,1754739039926,-206.5,0.00021497,2]
[378117931,1754739039940,-409.12,0.000215,2]
[378117934,1754739039949,-2047.3,0.00021583,2]
[378117937,1754739039959,-185.25,0.00021658,2]
[378117939,1754739039968,-151.52,0.00021681,2]
[378117940,1754739039978,-200.0,0.00021806,2]
[378117942,1754739039987,-1008.16101,0.0002189,2]
[378117944,1754739039997,-1280.94,0.00021891,2]
[378117946,1754739040007,-1666.94051613,0.00021894,2]
[378117948,1754739040017,-189.84,0.00021899,2]
[378117950,1754739040027,-3203.21,0.00021917,2]
[378117952,1754739040036,-5000.0,0.00021918,2]
[378117954,1754739040046,-200.0,0.00021918,120]
[378117956,1754739040055,-206.5,0.00021983,2]
[378117958,1754739040065,-359.76179104,0.00021995,2]
[378117960,1754739040075,-600.0,0.00021995,2]
[378117962,1754739040085,-500.0,0.00021995,2]
[378117964,1754739040094,-160.0,0.00021995,2]
[378117967,1754739040104,-500.0,0.00021995,2]
[378117969,1754739040114,-500.0,0.00021995,2]
[378117971,1754739040123,-500.0,0.00021995,2]
[378117972,1754739040133,-500.0,0.00021995,2]
[378117974,1754739040143,-500.0,0.00021995,2]
[378117976,1754739040152,-300.0,0.00021995,2]
[378117977,1754739040162,-500.0,0.00021995,2]
[378117979,1754739040172,-500.0,0.00021995,2]
[378117981,1754739040181,-317.76167784,0.00021995,2]
[378117983,1754739040190,-586.23063975,0.00021995,2]
[378117985,1754739040199,-500.0,0.00021995,2]
[378117987,1754739040209,-500.0,0.00021995,2]
[378117989,1754739040219,-326.73867833,0.00021995,2]
[378117991,1754739040228,-500.0,0.00021995,2]
[378117993,1754739040237,-500.0,0.00021995,2]
[378117995,1754739040247,-500.0,0.00021995,2]
[378117997,1754739040256,-219.3011451,0.00021995,2]
[378117999,1754739040265,-500.0,0.00021995,2]
[378118001,1754739040274,-500.0,0.00021995,2]
[378118003,1754739040283,-500.0,0.00021995,2]
[378118005,1754739040293,-485.53334461,0.00021995,2]
[378118007,1754739040304,-250.0,0.00021995,2]
[378118009,1754739040314,-200.0,0.00021995,2]
[378118011,1754739040323,-312.75287626,0.00021995,2]
[378118013,1754739040333,-250.0,0.00021995,2]
[378118015,1754739040342,-250.0,0.00021995,2]
[378118017,1754739040352,-151.0,0.00021995,2]
[378118019,1754739040369,-250.0,0.00021995,2]
[378118020,1754739040382,-151.0,0.00021995,2]
[378118023,1754739040394,-4662.51281194,0.00021995,2]
[378118024,1754739040404,-151.0,0.00021995,2]
[378118026,1754739040416,-250.0,0.00021995,2]
[378118028,1754739040425,-154.8624278,0.00021995,2]
[378118030,1754739040435,-239.84119403,0.00021995,2]
[378118032,1754739040445,-4000.0,0.00022,4]
[378118034,1754739040454,-600.0,0.00022019,2]
[378118036,1754739040466,-600.0,0.00022019,2]
[378118038,1754739040477,-600.0,0.00022019,2]
[378118040,1754739040489,-211.66152043,0.00022034,2]
[378118042,1754739040500,-457.70825493,0.00022044,2]
[378118044,1754739040510,-4835.02578598,0.0002205,2]
[378118046,1754739040520,-989.41962524,0.00022105,2]
[378118049,1754739040531,-6215.60629272,0.00022124,2]
[378118051,1754739040541,-1293.0,0.00022136,2]
[378118052,1754739040550,-564.0,0.00022136,2]
[378118054,1754739040560,-2026.0,0.00022136,2]
[378118056,1754739040569,-959.0,0.00022136,2]
[378118058,1754739040579,-598.1,0.00022136,2]
[378118060,1754739040588,-1170.0,0.00022136,2]
[378118061,1754739040598,-892.0,0.00022136,2]
[378118062,1754739040607,-6079.0,0.00022136,2]
[378118063,1754739040617,-1253.0,0.00022136,2]
[378118064,1754739040627,-3365.0,0.00022136,2]
[378118065,1754739040638,-167.33,0.00022221,2]
[378118066,1754739040647,-516.0,0.0002226,7]
[378118067,1754739040657,-774.81139225,0.00022306,2]
[378118068,1754739040667,-310.07462867,0.0002231,2]
[378118069,1754739040676,-167.33,0.00022332,2]
[378118070,1754739040686,-175.75962081,0.00022342,2]
[378118071,1754739040695,-151.0,0.00022342,7]
[378118072,1754739040705,-494.2,0.00022349,2]
[378118073,1754739040715,-167.33,0.00022443,2]
[378118074,1754739040725,-206.5,0.0002247,2]
[378118075,1754739040735,-1990.50209582,0.00022517,2]
[378118076,1754739040744,-152.0,0.00022559,3]
[378118077,1754739040754,-194.06,0.0002267,2]
[378118078,1754739040766,-205.37,0.00022675,2]
[378118079,1754739040775,-151.0,0.00022768,7]
[378118080,1754739040789,-151.0,0.00022768,7]
[378118083,1754739040808,-6215.60629272,0.00022768,2]
[378118084,1754739040818,-1008.16102,0.0002289,2]
[378118087,1754739040828,-206.5,0.00022956,2]
[378118088,1754739040837,-4000.0,0.00023,4]
[378118091,1754739040847,-288.928091,0.00023,7]
[378118093,1754739040856,-151.0,0.00023,7]
[378118095,1754739040866,-166.62,0.00023076,2]
[378118097,1754739040875,-500.0,0.00023096,2]
[378118099,1754739040885,-310.07462867,0.00023136,2]
[378118101,1754739040894,-1000.0,0.00023154,2]
[378118102,1754739040903,-500.0,0.00023288,2]
[378118104,1754739040912,-600.0,0.00023322,2]
[378118106,1754739040921,-600.0,0.00023322,2]
[378118108,1754739040930,-600.0,0.00023322,2]
[378118110,1754739040943,-373.07297731,0.00023364,2]
[378118112,1754739040952,-160.0,0.00023364,2]
[378118114,1754739040961,-248.71531821,0.00023364,2]
[378118116,1754739040970,-151.0,0.00023412,7]
[378118118,1754739040979,-151.0,0.00023412,7]
[378118120,1754739040990,-6215.60629272,0.00023412,2]
[378118122,1754739041001,-206.5,0.00023443,2]
[378118124,1754739041010,-175.75962081,0.00023487,2]
[378118126,1754739041021,-3402.70786623,0.0002353,2]
[378118128,1754739041031,-500.0,0.00023835,2]
[378118152,1754739041250,-511.97441185,0.00023835,2]
[378118154,1754739041261,-500.0,0.00023835,2]
[378118156,1754739041271,-5000.0,0.00023889,4]
[378118158,1754739041280,-2110.0,0.00023889,2]
[378118160,1754739041289,-1008.16102,0.0002389,2]
[378118162,1754739041298,-206.5,0.0002393,2]
[378118164,1754739041308,-310.07462867,0.00023963,2]
[378118166,1754739041318,-774.81139225,0.00023969,2]
[378118168,1754739041327,-501.21,0.00023988,2]
[378118170,1754739041337,-500.0,0.00023988,2]
[378118172,1754739041346,-500.0,0.00023988,2]
[378118174,1754739041356,-151.52,0.0002399,2]
[378118176,1754739041365,-4000.0,0.00024,4]
[378118178,1754739041375,-14224.31923391,0.00024,5]
[378118180,1754739041384,-508.29500152,0.00024001,30]
[378118182,1754739041394,-929.06740369,0.00024001,30]
[378118184,1754739041403,-504.88040161,0.00024001,30]
[378118186,1754739041413,-319.50578676,0.00024047,2]
[378118188,1754739041422,-6215.60629272,0.00024056,2]
[378118190,1754739041432,-494.2,0.0002408,2]
[378118192,1754739041441,-150.0,0.00024167,2]
[378118194,1754739041450,-158.0,0.00024168,2]
[378118195,1754739041459,-159.7057082,0.00024168,2]
[378118198,1754739041470,-163.05171249,0.00024168,2]
[378118199,1754739041479,-1215.0,0.00024168,2]
[378118201,1754739041490,-1215.0,0.00024168,2]
[378118203,1754739041504,-153.0,0.00024168,2]
[378118205,1754739041513,-284.41802915,0.00024168,2]
[378118207,1754739041523,-1215.0,0.00024168,2]
[378118209,1754739041532,-153.0,0.00024168,2]
[378118211,1754739041542,-1215.0,0.00024168,2]
[378118213,1754739041551,-153.0,0.00024168,2]
[378118215,1754739041560,-1215.0,0.00024168,2]
[378118217,1754739041570,-153.0,0.00024168,2]
[378118219,1754739041579,-1215.0,0.00024168,2]
[378118221,1754739041588,-153.0,0.00024168,2]
[378118223,1754739041598,-1215.0,0.00024168,2]
[378118225,1754739041607,-153.0,0.00024168,2]
[378118227,1754739041616,-153.0,0.00024168,2]
[378118229,1754739041626,-153.0,0.00024168,2]
[378118231,1754739041635,-1215.0,0.00024168,2]
[378118233,1754739041645,-153.0,0.00024168,2]
[378118235,1754739041654,-1215.0,0.00024168,2]
[378118237,1754739041664,-153.0,0.00024168,2]
[378118239,1754739041673,-1215.0,0.00024168,2]
[378118241,1754739041683,-1215.0,0.00024168,2]
[378118243,1754739041692,-153.0,0.00024168,2]
[378118245,1754739041701,-203.29304971,0.00024168,2]
[378118247,1754739041710,-1215.0,0.00024168,2]
[378118249,1754739041719,-153.0,0.00024168,2]
[378118251,1754739041731,-1215.0,0.00024168,2]
[378118253,1754739041740,-153.0,0.00024168,2]
[378118255,1754739041749,-1203.53894954,0.00024168,2]
[378118257,1754739041758,-153.0,0.00024168,2]
[378118259,1754739041767,-153.0,0.00024168,2]
[378118261,1754739041777,-153.0,0.00024168,2]
[378118263,1754739041786,-153.0,0.00024168,2]
[378118265,1754739041795,-153.0,0.00024168,2]
[378118267,1754739041804,-153.0,0.00024168,2]
[378118269,1754739041814,-153.0,0.00024168,2]
[378118271,1754739041823,-153.0,0.00024168,2]
[378118273,1754739041832,-156.83900383,0.00024168,2]
[378118275,1754739041841,-153.0,0.00024168,2]
[378118277,1754739041851,-153.0,0.00024168,2]
[378118279,1754739041859,-153.0,0.00024168,2]
[378118281,1754739041869,-175.52535048,0.00024168,2]
[378118283,1754739041878,-151.0,0.00024168,2]
[378118285,1754739041887,-151.0,0.00024168,2]
[378118287,1754739041897,-151.0,0.00024168,2]
[378118289,1754739041906,-151.0,0.00024168,2]
[378118290,1754739041916,-151.0,0.00024168,2]
[378118292,1754739041925,-151.0,0.00024168,2]
[378118294,1754739041938,-151.0,0.00024168,2]
[378118296,1754739041947,-151.0,0.00024168,2]
[378118299,1754739041957,-151.0,0.00024168,2]
[378118301,1754739041966,-151.0,0.00024168,2]
[378118302,1754739041975,-151.0,0.00024168,2]
[378118304,1754739041985,-151.0,0.00024168,2]
[378118306,1754739041994,-151.0,0.00024168,2]
[378118308,1754739042003,-151.0,0.00024168,2]
[378118311,1754739042014,-151.0,0.00024168,2]
[378118312,1754739042024,-151.0,0.00024168,2]
[378118314,1754739042033,-151.0,0.00024168,2]